Cogmind - Beta 17.1 @@@ ROGUE MODE // 2026.08.25 @ 17:03:57 // Winter2019/RPGLIKE Player: Jaegerpls Result: Destroyed by Y-45 Defender with Heavy Assault Rifle Performance ------------- Evolutions (1) 500 Regions Visited (3) 600 Robots Destroyed (22) 110 Value Destroyed (787) 787 Prototype IDs (2) 40 Alien Tech Used (0) 0 Bonus (0) 0 TOTAL SCORE: 2037 Bonus ------- None Cogmind --------- Core Integrity 0/600 Matter 300/300 Energy 250/250 System Corruption 0% Temperature Cool (9) Movement Hovering (120) Ox1 Location -9/Materials Parts ------- > --- POWER (1) -------- Ion Engine > --- PROPULSION (2) --- Hover Unit > --- UTILITY (3) ------ Improved Heat Sink Signal Interpreter Improved Terrain Scanner > --- WEAPON (2) ------- Medium Laser Hammer > --- INVENTORY (2) ---- Medium Laser Peak State ------------ > --- POWER ------------ Ion Engine > --- PROPULSION ------- Hover Unit Hover Unit > --- UTILITY ---------- Improved Heat Sink Signal Interpreter Improved Terrain Scanner > --- WEAPON ----------- Medium Laser Medium Laser > --- INVENTORY -------- Hammer [Rating: 12] Favorites ----------- Power Ion Engine Engine Ion Engine Propulsion Hover Unit Wheel Wheel Hover Unit Hover Unit Utility Improved Terrain Scanner Device Improved Terrain Scanner Processor Signal Interpreter Weapon Medium Laser Energy Gun Medium Laser Impact Weapon Hammer Build | -11 -10 -10 -9 ------- Run | Yrd Mat Min Mat Slots Evolved 4 | 3 1 . . Power . | . . . . Propulsion 1 | 1 . . . Utility 2 | 1 1 . . Weapon 1 | 1 . . . Parts Attached 11 | 5 6 . . Power 1 | 1 . . . Engine 1 | 1 . . . Core . | . . . . Reactor . | . . . . Propulsion 3 | 1 2 . . Treads . | . . . . Leg . | . . . . Wheel 1 | 1 . . . Hover 2 | . 2 . . Flight . | . . . . Utility 4 | 1 3 . . Device 3 | 1 2 . . Storage . | . . . . Processor 1 | . 1 . . Hackware . | . . . . Protection . | . . . . Artifact . | . . . . Weapon 3 | 2 1 . . Energy Gun 2 | 2 . . . Energy Cannon . | . . . . Ballistic Gun . | . . . . Ballistic Cannon . | . . . . Launcher . | . . . . Special Weapon . | . . . . Impact Weapon 1 | . 1 . . Slashing Weapon . | . . . . Piercing Weapon . | . . . . Special Melee Weapon . | . . . . Unidentified Prototypes . | . . . . Parts Lost 1 | . . . 1 Power . | . . . . Propulsion 1 | . . . 1 Utility . | . . . . Weapon . | . . . . Highest Loss Streak 1 | . . . 1 To Critical Strikes . | . . . . Average Backups . | . . 1 1 Power . | . . . . Propulsion . | . . . . Utility . | . . . . Weapon . | . . 1 1 Tool/Special . | . . . . Unused Backups . | . . . . Power . | . . . . Propulsion . | . . . . Utility . | . . . . Weapon . | . . . . Tool/Special . | . . . . Average Slot Usage (%) 98 | . 98 100 98 Engine 12 | . 13 12 12 Hover 25 | . 25 25 23 Device 25 | . 25 25 25 Processor 7 | . 5 12 12 Energy Gun 18 | . 20 12 12 Impact Weapon 6 | . 5 12 12 Peak Build Rating 12 | 7 12 12 12 Average Rating 10 | 5 10 12 11 On Entrance 7 | . 7 12 12 Avg Prop Armor Cover (%) . | . . . . Naked Turns . | . . . . Heaviest Build 11 | 10 11 11 11 Greatest Support 12 | 10 12 12 12 Greatest Overweight (x) . | . . . . Average Overweight (x) . | . . . . Largest Inventory Capacity 2 | 1 2 2 2 Average Capacity 1 | . 1 2 2 Most Carried 1 | . 1 1 1 Average Carried . | . . 1 1 Final Capacity 2 | 1 2 2 2 Final Carried 1 | . 1 1 1 Class Distribution -------------------- 71% | Mutant 28% | Scout Dominant Class ---------------- Mutant | -10/Materials Mutant | -10/Mines Mutant | -9/Materials Resources | -11 -10 -10 -9 ----------- Run | Yrd Mat Min Mat Matter Collected 350 | 105 245 . . Remotely . | . . . . Salvage Created 593 | 15 515 . 63 Parts 37 | 4 30 . 3 Haulers Intercepted 2 | . 2 . . Recyclers Shooed . | . . . . Parts Field Recycled . | . . . . Retrieved Matter . | . . . . Parts Self-Destructed . | . . . . Prevented . | . . . . Parts Restored . | . . . . Kills | -11 -10 -10 -9 ------- Run | Yrd Mat Min Mat Combat Hostiles Destroyed 14 | . 12 . 2 Melee 2 | . . . 2 Guns 11 | . 11 . . Classes Destroyed 7 | 1 6 . . Worker 2 | . 2 . . Tunneler 1 | 1 . . . Hauler 2 | . 2 . . Operator 1 | . 1 . . Watcher 2 | . 2 . . Swarmer 3 | . 3 . . Grunt 11 | . 9 . 2 Best Kill Streak 5 | 1 5 . 1 Combat Bots Only 5 | . 5 . 1 Max Kills in Single Turn 2 | 1 2 . 1 Gunslinging 1 | . 1 . . Exploded . | . . . . Melee 1 | . . . 1 Uniques/NPCs Destroyed . | . . . . Combat | -11 -10 -10 -9 -------- Run | Yrd Mat Min Mat Hostile Shots Fired 121 | . 55 . 66 Missed 36 | . 18 . 18 Hits 85 | . 37 . 48 Projectile 85 | . 37 . 48 Critical Strikes 1 | . . . 1 Damage Taken 1174 | . 506 . 668 Core 990 | . 422 . 568 Absorbed by Shields . | . . . . Redirected to Core 639 | . 284 . 355 Core Remaining (%) 96 | 100 . 93 . Volleys Fired 62 | 2 60 . . Largest 2 | 2 2 . . Hottest 100 | 100 100 . . Shots Fired 124 | 4 120 . . Gun 124 | 4 120 . . Cannon . | . . . . Launcher . | . . . . Special . | . . . . Kinetic . | . . . . Thermal 124 | 4 120 . . Explosive . | . . . . Electromagnetic . | . . . . Robot Hit Streak 14 | 1 14 . . Robot Miss Streak 4 | 2 4 . . Penetration Max . | . . . . Secondary Targets 3 | . 3 . . Max Gunslinging Chain 1 | . 1 . . Shots Hit Robots 100 | 2 85 . 13 Core Hits 34 | 1 31 . 2 Critical Kills 1 | . . . 1 Critical Parts Destroyed . | . . . . Critical Strikes 8 | . 7 . 1 Burn 7 | . 7 . . Smash 1 | . . . 1 Melee Attacks 58 | . 33 2 23 Impact 58 | . 33 2 23 Slashing . | . . . . Piercing . | . . . . Sneak Attacks . | . . . . Combat Hostiles . | . . . . Follow-up Attacks . | . . . . Damage Inflicted 1386 | 26 1108 . 252 Guns 1134 | 26 1108 . . Cannons . | . . . . Explosions . | . . . . Melee 252 | . . . 252 Ramming . | . . . . Kinetic . | . . . . Thermal 1134 | 26 1108 . . Explosive . | . . . . Electromagnetic . | . . . . Impact 252 | . . . 252 Slashing . | . . . . Piercing . | . . . . Highest Corruption . | . . . . Average Corruption . | . . . . Corruption Purged . | . . . . Corruption Blocked . | . . . . Overload Shots . | . . . . Overflow Damage . | . . . . Projectiles . | . . . . Explosions . | . . . . Melee . | . . . . Knockbacks . | . . . . Impact . | . . . . Kinetic . | . . . . Secondary . | . . . . Self-Inflicted Damage . | . . . . Shots . | . . . . Rammed . | . . . . Targets Rammed . | . . . . Kicked . | . . . . Crushed . | . . . . Highest Temperature 30 | . 30 . . Average Temperature 7 | . 7 . . Received Heat Transfer 495 | . 246 . 249 Siege Activations . | . . . . Martial Activations . | . . . . Shielding Activations . | . . . . Robots Disrupted . | . . . . Combat Hostiles . | . . . . Robots Corrupted . | . . . . Combat Hostiles . | . . . . Parts Fried . | . . . . Impact Corruptions . | . . . . Robots Melted 1 | . 1 . . Combat Hostiles 1 | . 1 . . Parts Melted 8 | . 8 . . Heat Transferred 3811 | 74 3737 . . Parts Sabotaged . | . . . . Parts Stolen . | . . . . Parts Stripped . | . . . . Power Chain Reactions . | . . . . Alert | -11 -10 -10 -9 ------- Run | Yrd Mat Min Mat Maximum Alert Level 1 | . 1 . . Low Security (%) 82 | 100 75 100 100 Level 1 17 | . 24 . . Level 2 . | . . . . Level 3 . | . . . . Level 4 . | . . . . Level 5 . | . . . . High Security . | . . . . Max Security . | . . . . Peak Influence 295 | 5 295 80 30 Initial 80 | . . 80 . Average 93 | . 119 44 10 Influence Increases 878 | 5 764 42 67 Destroy 0b10 Robot/C 280 | . 240 . 40 Destroy 0b10 Robot/NC 40 | 5 35 . . Destroy Leader 68 | . 58 . 10 Successful Hack 35 | . 23 12 . Disable Machine 405 | . 360 30 15 Destroy Structure 5 | . 3 . 2 Partial Spotted 15 | . 15 . . Lose Combat Pursuer 30 | . 30 . . Influence Decreases 858 | 5 557 247 49 Entered New Map 129 | . . 127 2 Time Decay 569 | 5 407 120 37 Lost Part 10 | . . . 10 Purge Threat 150 | . 150 . . Squads Dispatched 3 | . 1 . 2 Investigation 1 | . 1 . . Extermination . | . . . . Reinforcement 2 | . . . 2 Assault . | . . . . Garrison . | . . . . Intercept . | . . . . Searches Triggered . | . . . . Construction Impeded . | . . . . Haulers Reinforced . | . . . . Active Scanning Responses . | . . . . Cargo Convoy Interrupts . | . . . . Stealth | -11 -10 -10 -9 --------- Run | Yrd Mat Min Mat Distress Signals 2 | . 1 . 1 Communications Jammed . | . . . . Distress Signals . | . . . . Times Spotted 29 | . 23 . 6 Peak Tracking Total 7 | . 7 . 5 Tactical Retreats 2 | . 2 . . Traps | -11 -10 -10 -9 ------- Run | Yrd Mat Min Mat Traps Triggered 2 | . 2 . . Indirectly . | . . . . Trap Hack Attempts . | . . . . Triggered . | . . . . Disarmed . | . . . . Reprogrammed . | . . . . Reused . | . . . . Traps Extracted . | . . . . Installed . | . . . . Triggered . | . . . . Machines | -11 -10 -10 -9 ---------- Run | Yrd Mat Min Mat Machines Disabled 27 | . 24 2 1 Max in Single Turn 1 | . 1 1 1 Machines Repaired . | . . . . Machines Dismantled . | . . . . Machines Sabotaged . | . . . . Overloaded Fab Kills . | . . . . Hacking | -11 -10 -10 -9 --------- Run | Yrd Mat Min Mat Machines Accessed 11 | . 10 1 . Terminals 9 | . 8 1 . Fabricators . | . . . . Repair Stations . | . . . . Recycling Units 2 | . 2 . . Scanalyzers . | . . . . Garrison Access . | . . . . Total Hacks 37 | . 33 4 . Successful 19 | . 16 3 . Failed 18 | . 17 1 . Catastrophic . | . . . . Database Lockouts . | . . . . Manual 26 | . 24 2 . Terminals 31 | . 27 4 . Fabricators . | . . . . Repair Stations . | . . . . Recycling Units 6 | . 6 . . Scanalyzers . | . . . . Garrison Access . | . . . . Terminal Hacks 6 | . 3 3 . Robot Analysis 1 | . 1 . . Prototype ID Bank 1 | . 1 . . Unreport Threat 1 | . 1 . . Locate Traps 1 | . . 1 . Dispatch Records 1 | . . 1 . Zone Layout 1 | . . 1 . Fabricator Hacks . | . . . . Repair Station Hacks . | . . . . Recycling Unit Hacks 1 | . 1 . . Report Inventory 1 | . 1 . . Scanalyzer . | . . . . Garrison Access Hacks . | . . . . Unauthorized Hacks 12 | . 12 . . Terminals 11 | . 11 . . Track 2 | . 2 . . Botnet 3 | . 3 . . Disrupt 1 | . 1 . . Skim 5 | . 5 . . Fabricators . | . . . . Repair Stations . | . . . . Recycling Units 1 | . 1 . . Reject 1 | . 1 . . Scanalyzers . | . . . . Garrison Access . | . . . . Data Cores Recovered 1 | . 1 . . Used 1 | . 1 . . Hacking Detections 11 | . 10 1 . Full Trace Events . | . . . . Feedback Events . | . . . . Feedback Blocked . | . . . . Robot Schematics Acquired . | . . . . Robots Built . | . . . . Authchips . | . . . . Time . | . . . . Total Robot Build Rating . | . . . . Part Schematics Acquired . | . . . . Parts Built . | . . . . Authchips . | . . . . Time . | . . . . Total Part Build Rating . | . . . . Part Studies Acquired . | . . . . Parts Repaired . | . . . . Time . | . . . . Parts Recycled . | . . . . Recycled Matter . | . . . . Retrieved Matter . | . . . . Retrieved Components . | . . . . Parts Scanalyzed . | . . . . Part Schematics Acquired . | . . . . Parts Damaged . | . . . . Bothacking | -11 -10 -10 -9 ------------ Run | Yrd Mat Min Mat Used RIF Installer . | . . . . Robots Hacked . | . . . . Non-combat . | . . . . Combat . | . . . . Robot Hacks Applied . | . . . . Relay Couplers Released . | . . . . Fabnet Peak Effective % . | . . . . Robots Rewired . | . . . . Allies Hacked . | . . . . Hacks Repelled . | . . . . Allies | -11 -10 -10 -9 -------- Run | Yrd Mat Min Mat Total Allies 2 | . . 2 . Largest Group 2 | . . 2 . Highest-Rated Group 45 | . . 45 . Highest-Rated Ally 31 | . . 31 . Total Orders . | . . . . Ally Attacks . | . . . . Total Damage . | . . . . Kills . | . . . . Allies Corrupted . | . . . . Allies Melted . | . . . . Intel | -11 -10 -10 -9 ------- Run | Yrd Mat Min Mat Active Infowar (turns) 1683 | 86 1243 254 100 Sensors 470 | . 470 . . Terrain 1683 | 86 1243 254 100 Robot Analysis Total 1 | . 1 . . Derelict Logs Recovered 1 | . . 1 . Drone Launches . | . . . . Drone Recoveries . | . . . . Exploration | -11 -10 -10 -9 ------------- Run | Yrd Mat Min Mat Turns Passed 1722 | 125 1243 254 100 Spaces Moved 1741 | 34 1359 280 68 Core 1 | 1 . . . Treads . | . . . . Legs . | . . . . Wheels 59 | 33 26 . . Hover 1681 | . 1333 280 68 Flight . | . . . . Fastest Speed 50 | 50 56 56 56 Average Speed 56 | 79 56 56 56 Slowest Speed 80 | 80 80 56 56 Overloaded Moves . | . . . . Propulsion Burnouts . | . . . . Robots Hopped . | . . . . Potential Cave-ins . | . . . . Cave-ins Triggered . | . . . . Exploration Rate (%) 45 | 4 99 66 12 Regions Visited 3 Branch Regions 1 Pre-discovered Areas 3 | . 2 1 . Known Exits Taken 2 | . 1 1 . Unknown Exits Taken 1 | 1 . . . Scrap Searched . | . . . . Spaces Dug 5 | . 3 . 2 Terrain Destroyed 5 | . 3 . 2 Melee 5 | . 3 . 2 Projectile . | . . . . AOE . | . . . . Terrain Rammed . | . . . . Walls Destroyed . | . . . . Machines Disabled . | . . . . Actions | -11 -10 -10 -9 --------- Run | Yrd Mat Min Mat Total 2242 | 125 1653 373 91 Wait 341 | 85 164 92 . Move 1738 | 33 1358 279 68 Hop . | . . . . Pick Up 3 | . 3 . . Fast Attach 9 | 5 4 . . Attach . | . . . . Detach . | . . . . Swap 6 | . 6 . . Drop 3 | . 3 . . Fire 62 | 2 60 . . Melee 58 | . 33 2 23 Ram . | . . . . Kick . | . . . . Crush . | . . . . Escape Stasis . | . . . . Rewire . | . . . . Trap . | . . . . Miscellaneous 22 | . 22 . . Route ------- -11/Scrapyard -10/Materials (discovered 5 exits: *Mat x3 / *Min / *Sub) -10/Mines (discovered 3 exits: *Mat x2 / *Sub) -9/Materials (discovered 1 exit: [*Min]) History --------- Turn | Location | Event 18 | -11/Scrapyard | Discovered new exit (range 15) 21 | -11/Scrapyard | Upgraded with Propulsion slot (x1) 21 | -11/Scrapyard | Upgraded with Utility slot (x1) 21 | -11/Scrapyard | Upgraded with Weapon slot (x1) 126 | -11/Scrapyard | Entered Materials 188 | -10/Materials | Discovered new exit (range 16) 360 | -10/Materials | Discovered new exit (range 15) 478 | -10/Materials | Build established: Scout 482 | -10/Materials | Discovered new exit (range 14) 680 | -10/Materials | Discovered new exit (range 16) 758 | -10/Materials | Reached level 2 760 | -10/Materials | Upgraded with Utility slot (x1) 963 | -10/Materials | Build established: Mutant 990 | -10/Materials | Discovered new exit (range 15) 1123 | -10/Materials | Identified exit to Subcaves 1163 | -10/Materials | Learned location of Subcaves (-10) 1182 | -10/Materials | Reached level 3 1194 | -10/Materials | Learned 2 Mines zone layouts 1284 | -10/Materials | Learned 4 Subcaves zone layouts 1310 | -10/Materials | Identified exit to Materials 1369 | -10/Materials | Identified exit to Mines 1369 | -10/Materials | Entered Mines 1438 | -10/Mines | Discovered exit to Subcaves (range 14) 1450 | -10/Mines | Discovered exit to Materials (range 13) 1494 | -10/Mines | Assembled infested the area 1499 | -10/Mines | Assisted by a Guerilla fighting off Assembled 1550 | -10/Mines | Learned location of Zion (-6) 1623 | -10/Mines | Entered Materials 1625 | -9/Materials | Reached level 4 1649 | -9/Materials | Discovered new exit (range 15) 1702 | -9/Materials | Core integrity fell below 50% 1718 | -9/Materials | Core integrity fell below 20% 1723 | -9/Materials | Destroyed by Y-45 Defender with Heavy Assault Rifle Last Messages --------------- 01594_ K-01 Serf collects debris. LOCATION=MATERIALS GOAL=ESCAPE 01625_ Reached level 4. 01629_ Electrolysis Chamber disabled. 01644_ W-16 Scout sends out distress signal. 01649_ EXIT=FOUND 01651_ O-16 Technician uses terminal to summon reinforcements. 01651_ ALERT: Hostiles spotted, dispatching reinforcements to Terminal M001. 01651_ O-16 Technician locks terminal. 01678_ ALERT: Hostiles spotted, dispatching reinforcements to Terminal M002. 01690_ G-47 Trooper suffers critical hit (Smash). 01690_ G-47 Trooper destroyed. 01696_ Material Compactor disabled. 01711_ Critical hit (Burn: +37). 01715_ U-05 Engineer builds a Wall. 01717_ Hover Unit destroyed. 01722_ G-34 Mercenary destroyed. Map ----- +----------------------------------------------------+ | ?????????????????????????????????????????????????? | | ?????????????????????????????????????????????????? | | ?????????????????????????????????????????????????? | | ?????????????????????????????????????????????????? | | ?????????????????????????????????????????????????? | | ?????????????????????????????????????????????????? | | ?????????????????????????????????????????????????? | | ?????????????????????????????????????????????????? | | ?????????????????????????????????????????????????? | | ????????????????????????? ???????????????????????? | | ??????????????????????#???????#??????????????????? | | ????????????????????? ??##???????????????????????? | | ?????????????????#?# ######?""??????????????????? | | ????????????????? ?# ###### """?? ?????????????? | | ????????????? ?"??+ #?"""? ??????????????? | | ??????????????"?" ?# + ?????????????? | | ????????????? """ ##/####### ###??????????? | | ????????????#? # ! ## "?"? ?###??????????? | | ???????????##?"?" # """ ## """" ####?#???????? | | ???????????## """ # "T" ## ? ##?##? ??????? | | ???????????##?"?" # ###########?####?#?????? | | ?????????##?# ? # """ #################??????? | | ????????###?# ? # """""=########?########?#????? | | ??????????### # """""%####??##?#####?##?#????? | | ?????###?##?? # "" ""%############## ? ? ????? | | ??????####?######## " %@###?######?### ??? ???? | | ?#????#?#?#?#?##### [ ############## "" ???? | | #???#?#?########### YY;############# S???????? | | ?????##?################# ## ###### "?? ???? | | ?????############?########## ######? ? #??? | | ???????## #############?## ######?#???##??? | | ?#???#?## ################ "T" #######? ????? | | ?#?#?#??# ########?####### """ ########?? ????? | | #??#????# ##?##?########## ######## ?????? | | ??##?#?## #?#################+########?#####???? | | ??#??#??# ################# #####???#???? | | ????#??## ################# ####??##?##?? | | ##########+### ##??????????? | | #?? ?? ?????? | | """ """ ##"?? ?????? | | """ """"" ????????? | | ##########+### """ """""